Cogmind - Beta 13 @@@ ROGUE MODE // 2024.04.01 @ 18:23:11 Player: weppet Result: Destroyed by Y-45 Defender with Heavy Assault Rifle Performance ------------- Evolutions (2) 1000 Regions Visited (3) 600 Robots Destroyed (22) 110 Value Destroyed (415) 415 Prototype IDs (0) 0 Alien Tech Used (0) 0 Bonus (0) 0 TOTAL SCORE: 2125 Bonus ------- None Cogmind --------- Core Integrity 0/550 Matter 300/300 Energy 99/100 System Corruption 0% Temperature Cool (18) Movement Core (200) Ox3 Location -8/Materials Parts ------- > --- POWER (2) -------- (None) > --- PROPULSION (2) --- (None) > --- UTILITY (5) ------ Medium Storage Unit > --- WEAPON (2) ------- (None) > --- INVENTORY (10) --- Improved Aluminum Leg Improved Aluminum Leg Improved Aluminum Leg Medium Armor Plating Medium Armor Plating EM Pulse Gun Heavy EM Pulse Gun Advanced Beam Cannon Peak State ------------ > --- POWER ------------ Ion Engine Ion Engine > --- PROPULSION ------- Improved Aluminum Leg Improved Aluminum Leg > --- UTILITY ---------- Heat Sink Medium Storage Unit Medium Armor Plating Medium Armor Plating Shield Generator > --- WEAPON ----------- Heavy EM Pulse Gun Heavy EM Pulse Gun > --- INVENTORY -------- Improved Aluminum Leg Improved Aluminum Leg Medium Armor Plating Medium Armor Plating EM Pulse Gun Heavy EM Pulse Gun Heavy EM Pulse Gun Advanced Beam Cannon [Rating: 19] Favorites ----------- Power Ion Engine Engine Ion Engine Propulsion Aluminum Leg Leg Aluminum Leg Wheel Wheel Utility Medium Armor Plating Device Shield Generator Storage Medium Storage Unit Protection Medium Armor Plating Weapon Heavy EM Pulse Gun Energy Gun Heavy EM Pulse Gun Launcher Grenade Launcher Build | -11 -10 -9 -8 ------- Run | Yrd Mat Mat Mat Slots Evolved 4 | . . 2 2 Power 1 | . . . 1 Propulsion . | . . . . Utility 3 | . . 2 1 Weapon . | . . . . Parts Attached 36 | 8 13 12 3 Power 3 | 2 . . 1 Engine 3 | 2 . . 1 Core . | . . . . Reactor . | . . . . Propulsion 8 | 4 2 2 . Treads . | . . . . Leg 6 | 2 2 2 . Wheel 2 | 2 . . . Hover . | . . . . Flight . | . . . . Utility 16 | . 8 7 1 Device 5 | . 2 2 1 Storage 4 | . 2 2 . Processor . | . . . . Hackware . | . . . . Protection 7 | . 4 3 . Artifact . | . . . . Weapon 9 | 2 3 3 1 Energy Gun 8 | 2 2 3 1 Energy Cannon . | . . . . Ballistic Gun . | . . . . Ballistic Cannon . | . . . . Launcher 1 | . 1 . . Special Weapon . | . . . . Impact Weapon . | . . . . Slashing Weapon . | . . . . Piercing Weapon . | . . . . Special Melee Weapon . | . . . . Unidentified Prototypes . | . . . . Parts Lost 12 | . . 1 11 Power 2 | . . . 2 Propulsion 2 | . . . 2 Utility 5 | . . 1 4 Weapon 3 | . . . 3 Highest Loss Streak 11 | . . 1 11 To Critical Strikes . | . . . . Average Slot Usage (%) 91 | . 91 97 72 Engine 12 | . 14 11 12 Leg 22 | . 26 22 13 Device 5 | . . 7 13 Storage 11 | . 8 14 9 Protection 16 | . 14 19 11 Energy Gun 18 | . 16 21 11 Launcher 3 | . 9 . . Naked Turns . | . . . . Heaviest Build 43 | 9 23 37 43 Greatest Support 26 | 20 20 26 26 Greatest Overweight (x) 5 | . 5 1 3 Average Overweight (x) . | . . . 1 Largest Inventory Capacity 10 | 5 10 10 10 Average Capacity 7 | 5 5 10 10 Most Carried 10 | 5 9 10 9 Average Carried 6 | 2 4 9 8 Final Capacity 10 | 5 5 10 10 Final Carried 10 | 5 3 10 8 Class Distribution -------------------- 100% | Mutant Dominant Class ---------------- Mutant | -10/Materials Mutant | -9/Materials Mutant | -8/Materials Resources | -11 -10 -9 -8 ----------- Run | Yrd Mat Mat Mat Matter Collected 611 | 280 84 231 16 Remotely . | . . . . Salvage Created 510 | 49 34 219 208 Parts 47 | 3 7 26 11 Haulers Intercepted . | . . . . Recyclers Shooed . | . . . . Parts Field Recycled . | . . . . Retrieved Matter . | . . . . Parts Self-Destructed . | . . . . Prevented . | . . . . Kills | -11 -10 -9 -8 ------- Run | Yrd Mat Mat Mat Combat Hostiles Destroyed 16 | 1 3 10 2 Guns 12 | 1 . 9 2 AOE 4 | . 3 1 . Classes Destroyed 6 | 1 3 1 1 Builder 2 | . 1 . 1 Mechanic 1 | . . . 1 Watcher 3 | . 2 . 1 Swarmer 11 | . 3 8 . Grunt 3 | 1 . 1 1 Sentry 2 | . . 1 1 Best Kill Streak 5 | 1 5 4 5 Combat Bots Only 4 | 1 3 4 1 Max Kills in Single Turn 2 | 1 2 2 2 Gunslinging 1 | . . 1 . Exploded 1 | . 1 1 . Melee . | . . . . Uniques/NPCs Destroyed . | . . . . Combat | -11 -10 -9 -8 -------- Run | Yrd Mat Mat Mat Hostile Shots Fired 183 | 2 6 36 139 Missed 56 | . 3 17 36 Damage Taken 1758 | 21 18 234 1485 Core 610 | 10 6 29 565 Absorbed by Shields 193 | . . 35 158 Core Remaining (%) 93 | 96 93 92 . Volleys Fired 37 | 1 7 14 15 Largest 2 | 2 2 2 2 Hottest 90 | 80 70 90 90 Shots Fired 74 | 2 14 28 30 Gun 67 | 2 7 28 30 Cannon . | . . . . Launcher 7 | . 7 . . Special . | . . . . Kinetic . | . . . . Thermal . | . . . . Explosive 7 | . 7 . . Electromagnetic 67 | 2 7 28 30 Robot Hit Streak 5 | 2 2 4 5 Robot Miss Streak 10 | . 1 10 4 Penetration Max . | . . . . Secondary Targets 5 | . . 3 2 Max Gunslinging Chain 1 | . . 1 1 Shots Hit Robots 34 | 2 4 12 16 Core Hits 30 | 2 6 11 11 Critical Kills . | . . . . Critical Parts Destroyed . | . . . . Critical Strikes . | . . . . Melee Attacks . | . . . . Impact . | . . . . Slashing . | . . . . Piercing . | . . . . Sneak Attacks . | . . . . Combat Hostiles . | . . . . Follow-up Attacks . | . . . . Damage Inflicted 1362 | 28 483 300 551 Guns 503 | 28 32 161 282 Cannons . | . . . . Explosions 840 | . 451 139 250 Melee . | . . . . Ramming 19 | . . . 19 Kinetic . | . . . . Thermal 335 | . . 85 250 Explosive 505 | . 451 54 . Electromagnetic 503 | 28 32 161 282 Impact . | . . . . Slashing . | . . . . Piercing . | . . . . Highest Corruption . | . . . . Average Corruption . | . . . . Corruption Purged . | . . . . Corruption Blocked . | . . . . Overload Shots . | . . . . Overflow Damage 35 | . 9 26 . Projectiles . | . . . . Explosions 35 | . 9 26 . Melee . | . . . . Knockbacks . | . . . . Impact . | . . . . Kinetic . | . . . . Secondary . | . . . . Self-Inflicted Damage 87 | . . 87 . Shots 1 | . . 1 . Rammed . | . . . . Targets Rammed 6 | . . . 6 Kicked 6 | . . . 6 Crushed . | . . . . Highest Temperature 169 | 18 72 117 169 Average Temperature 49 | 12 26 37 74 Received Heat Transfer 733 | 12 . 26 695 Siege Activations . | . . . . Robots Corrupted . | . . . . Combat Hostiles . | . . . . Parts Fried . | . . . . Impact Corruptions . | . . . . Robots Melted . | . . . . Combat Hostiles . | . . . . Parts Melted . | . . . . Heat Transferred 450 | . . 200 250 Parts Sabotaged . | . . . . Parts Stolen . | . . . . Parts Stripped . | . . . . Power Chain Reactions 2 | . . 1 1 Alert | -11 -10 -9 -8 ------- Run | Yrd Mat Mat Mat Peak Influence 206 | 20 122 206 167 Initial 35 | . 13 16 35 Average 60 | 5 39 81 82 Maximum Alert Level 1 | . . 1 . Low Security (%) 95 | 100 100 88 100 Level 1 4 | . . 11 . Level 2 . | . . . . Level 3 . | . . . . Level 4 . | . . . . Level 5 . | . . . . High Security . | . . . . Max Security . | . . . . Squads Dispatched 4 | . . 2 2 Investigation . | . . . . Extermination . | . . . . Reinforcement 4 | . . 2 2 Assault . | . . . . Garrison . | . . . . Intercept . | . . . . Searches Triggered . | . . . . Construction Impeded 1 | . . . 1 Haulers Reinforced . | . . . . Active Scanning Responses . | . . . . Cargo Convoy Interrupts . | . . . . Stealth | -11 -10 -9 -8 --------- Run | Yrd Mat Mat Mat Distress Signals 3 | . . 1 2 Communications Jammed . | . . . . Distress Signals . | . . . . Times Spotted 40 | 1 5 12 22 Peak Tracking Total 15 | 1 3 5 15 Tactical Retreats 2 | . . . 2 Traps | -11 -10 -9 -8 ------- Run | Yrd Mat Mat Mat Traps Triggered 4 | . 4 . . Indirectly . | . . . . Trap Hack Attempts . | . . . . Triggered . | . . . . Disarmed . | . . . . Reprogrammed . | . . . . Reused . | . . . . Traps Extracted . | . . . . Installed . | . . . . Triggered . | . . . . Machines | -11 -10 -9 -8 ---------- Run | Yrd Mat Mat Mat Machines Disabled 2 | . . 1 1 Max in Single Turn 1 | . . 1 1 Machines Repaired . | . . . . Machines Dismantled . | . . . . Machines Sabotaged . | . . . . Overloaded Fab Kills . | . . . . Hacking | -11 -10 -9 -8 --------- Run | Yrd Mat Mat Mat Machines Accessed 2 | . . 2 . Terminals 2 | . . 2 . Fabricators . | . . . . Repair Stations . | . . . . Recycling Units . | . . . . Scanalyzers . | . . . . Garrison Access . | . . . . Total Hacks 5 | . . 5 . Successful 4 | . . 4 . Failed 1 | . . 1 . Catastrophic . | . . . . Database Lockouts . | . . . . Manual . | . . . . Terminals 5 | . . 5 . Fabricators . | . . . . Repair Stations . | . . . . Recycling Units . | . . . . Scanalyzers . | . . . . Garrison Access . | . . . . Terminal Hacks 4 | . . 4 . Record 2 | . . 2 . Alert Level 1 | . . 1 . Dispatch Records 1 | . . 1 . Fabricator Hacks . | . . . . Repair Station Hacks . | . . . . Recycling Unit Hacks . | . . . . Scanalyzer . | . . . . Garrison Access Hacks . | . . . . Unauthorized Hacks . | . . . . Terminals . | . . . . Fabricators . | . . . . Repair Stations . | . . . . Recycling Units . | . . . . Scanalyzers . | . . . . Garrison Access . | . . . . Data Cores Recovered . | . . . . Used . | . . . . Hacking Detections . | . . . . Full Trace Events . | . . . . Feedback Events . | . . . . Feedback Blocked . | . . . . Robot Schematics Acquired . | . . . . Robots Built . | . . . . Authchips . | . . . . Time . | . . . . Total Robot Build Rating . | . . . . Part Schematics Acquired . | . . . . Parts Built . | . . . . Authchips . | . . . . Time . | . . . . Total Part Build Rating . | . . . . Parts Repaired . | . . . . Time . | . . . . Parts Recycled . | . . . . Recycled Matter . | . . . . Retrieved Matter . | . . . . Retrieved Components . | . . . . Parts Scanalyzed . | . . . . Part Schematics Acquired . | . . . . Parts Damaged . | . . . . Bothacking | -11 -10 -9 -8 ------------ Run | Yrd Mat Mat Mat Used RIF Installer . | . . . . Robots Hacked . | . . . . Non-combat . | . . . . Combat . | . . . . Robot Hacks Applied . | . . . . Relay Couplers Released . | . . . . Fabnet Peak Effective % . | . . . . Robots Rewired . | . . . . Allies Hacked . | . . . . Hacks Repelled . | . . . . Allies | -11 -10 -9 -8 -------- Run | Yrd Mat Mat Mat Total Allies . | . . . . Largest Group . | . . . . Highest-Rated Group . | . . . . Highest-Rated Ally . | . . . . Total Orders . | . . . . Ally Attacks . | . . . . Total Damage . | . . . . Kills . | . . . . Allies Corrupted . | . . . . Allies Melted . | . . . . Intel | -11 -10 -9 -8 ------- Run | Yrd Mat Mat Mat Robot Analysis Total . | . . . . Derelict Logs Recovered . | . . . . Drone Launches . | . . . . Drone Recoveries . | . . . . Exploration | -11 -10 -9 -8 ------------- Run | Yrd Mat Mat Mat Turns Passed 1489 | 114 545 633 197 Spaces Moved 854 | 88 400 290 76 Core 42 | 18 7 . 17 Treads . | . . . . Legs 804 | 62 393 290 59 Wheels 8 | 8 . . . Hover . | . . . . Flight . | . . . . Fastest Speed 50 | 50 120 120 120 Average Speed 147 | 102 123 188 174 Slowest Speed 300 | 120 300 190 200 Overloaded Moves . | . . . . Propulsion Burnouts . | . . . . Robots Hopped . | . . . . Cave-ins Triggered . | . . . . Exploration Rate (%) 26 | 6 57 30 13 Regions Visited 3 Branch Regions . Pre-discovered Areas . | . . . . Known Exits Taken . | . . . . Unknown Exits Taken 3 | 1 1 1 . Scrap Searched . | . . . . Spaces Dug . | . . . . Terrain Destroyed 63 | . 56 1 6 Melee . | . . . . Projectile . | . . . . AOE 63 | . 56 1 6 Terrain Rammed . | . . . . Walls Destroyed . | . . . . Machines Disabled . | . . . . Actions | -11 -10 -9 -8 --------- Run | Yrd Mat Mat Mat Total 1008 | 110 441 351 106 Wait 6 | . 1 . 5 Move 851 | 87 399 289 76 Hop . | . . . . Pick Up 45 | 12 12 20 1 Fast Attach 9 | . 3 6 . Attach 22 | 7 9 3 3 Detach 1 | . 1 . . Swap 5 | 1 1 3 . Drop 26 | 2 8 16 . Fire 37 | 1 7 14 15 Melee . | . . . . Ram . | . . . . Kick 6 | . . . 6 Crush . | . . . . Escape Stasis . | . . . . Rewire . | . . . . Trap . | . . . . Miscellaneous . | . . . . Route ------- -11/Scrapyard -10/Materials (discovered 3 exits: *Mat x2 / [*Min]) -9/Materials -8/Materials History --------- Turn | Location | Event 2 | -11/Scrapyard | Met Revision 17 73 | -11/Scrapyard | Discovered new exit (range 8) 115 | -11/Scrapyard | Entered Materials 223 | -10/Materials | Discovered new exit (range 16) 309 | -10/Materials | Build established: Mutant 317 | -10/Materials | Discovered new exit (range 15) 479 | -10/Materials | Discovered new exit (range 5) 660 | -10/Materials | Entered another Materials area 660 | -9/Materials | Evolved 2 slots: Utility x2 980 | -9/Materials | Discovered new exit (range 15) 1293 | -9/Materials | Entered another Materials area 1293 | -8/Materials | Evolved 2 slots: Power x1, Utility x1 1470 | -8/Materials | Core integrity fell below 50% 1478 | -8/Materials | Core integrity fell below 20% 1490 | -8/Materials | Destroyed by Y-45 Defender with Heavy Assault Rifle Last Messages --------------- U-05 Engineer destroyed. R-06 Scavenger collects Terrain Scanner. Hvy. EM Pulse Gun destroyed. R-06 Scavenger collects Terrain Scan Processor. Critical hit (Burn: +37). R-06 Scavenger collects Wheel. K-01 Serf collects debris. Penetrated by Slug. Imp. Aluminum Leg destroyed. Penetrated by Slug. R-06 Scavenger collects Lgt. Ion Engine. Heat Sink destroyed. Penetrated by Slug. K-01 Serf collects debris. R-06 Scavenger collects Structural Scanner. Slug penetrates R-06 Scavenger. K-01 Serf collects debris. G-47 Trooper IFF system glitched. Penetrated by Slug. Slug penetrates Wall. Map ----- +----------------------------------------------------+ | ???????? #?# !!%%* / #???????? | | ?????????? ???# ######% # """?????????? | | ??????######+###### # ! #%%! #??????????????? | | ??????# ##! ##??????????????? | | ??????# #####+#### ## #???????????????? | | ??????# + = #? ## #???????????????? | | ??????######### """ #? ## #???????????????? | | ??????????????# """ #? ## #?######????????? | | ??????????????# """ ### ## # #????????? | | ??????????????# #?####?# # #????????? | | ??????????????#########??????# + """#????????? | | ?????????????????????????????# # R"#????????? | | ??????????????????????????##?# # """#????????? | | ??????????????????????????# # #? #????????? | | ??????????????????????????# #% #########???????? | | ?????????????????????????## = + """ =!#???????? | | ???????????????????????##Y#### # """ =!#???????? | | ???????????????????????# !!!# # """ #???????? | | ???????????????????????# !!!# #? #???????? | | ???????????????????????# !!!# #? [ ????????? | | ???????????????????????# # #??######???????? | | ???????????????????????# # #???????????????? | | ???????????????????????# ! # #???????????????? | | ???????????????????????# # #???????????????? | | ???????????????????????# # #???????????????? | | ???????????????????????# @"""# #???????????????? | | ???????????????????????# R"# #???????????????? | | ???????????????????????# g"""# #???????????????? | | ???????????????????????# g # #???????????????? | | ???????????????????###+####g## #???????????????? | | ???????????? h +???????????????? | | ???????????? #???????????????? | | ???????????? #???????????????? | | ?????????????####+####+######## ##???????????????? | | ??????????????????????????????? #????????????????? | | ??????????????????????????????? #????????????????? | | ??????????????????????????????? #????????????????? | | ??????????????????????????????? #????????????????? | | ??????????????????????????????? #????????????????? | | ??????????????????????????????? #????????????????? | | ??????????????????????????????? #????????????????? | | ????????????????????????????????#????????????????? | | ?????????????????????????????????????????????????? | | ?????????????????????????????????????????????????? | | ?????????????????????????????????????????????????? | | ?????????????????????????????????????????????????? | | ?????????????????????????????????????????????????? | | ?????????????????????????????????????????????????? | | ?????????????????????????????????????????????????? | | ?????????????????????????????????????????????????? | +----------------------------------------------------+ Best States ------------- Heat Dissipation 41 Energy Generation 15 Energy Capacity 400 Matter Stores 350 Matter Capacity 350 Sight Range 16 Terrain Scan Density 10 Armor Coverage 450 Propulsion Shielding 33 Evasion (%) 55 Item Schematics ----------------- None Robot Schematics ------------------ None Fabricated ------------ Nothing Alien Tech Used ----------------- None Achievements -------------- None Challenges ------------ None Game ------ Seed VisualProcessingWell Manual? 0 Play Time 00:31:28 Cumulative 2.5 hours Start 2024.04.01 @ 17:51:16 End 2024.04.01 @ 18:23:11 Sessions 1 Manual Loads 0 Difficulty Rogue Special Mode None Game No. 3 Rogue 3 Adventurer 0 Explorer 0 Win Type - Total 0 Types 0/0/0/0/0/0/0/0/0 Lore% 1 Gallery% 4 Achievement% 5 Wizard Run 0 Options --------- Layout 1 ASCII 0 Keyboard 0 Movement Mouse Keybinds 0 Fullscreen 1 Font 24/Smallcaps Map View 50x35 Zoom Use 0% Tactical HUD 0 Map Filters NONE Filters NONE Steam 1 RUN: e1e26dd0-0f69-4794-bb0f-238064b01a5c